fUST/lending_fUST_20260115
["ID","MTS","AMOUNT","RATE_DAILY","PERIOD"]
[401981451,1768434649164,-223.89,0.000249,7]
[401981453,1768434649173,-151.0,0.000249,7]
[401981455,1768434649182,-151.0,0.000249,7]
[401981457,1768434649191,-151.0,0.000249,7]
[401981459,1768434649200,-218.833933,0.000249,7]
[401981461,1768434649209,-200.0,0.000249,7]
[401981463,1768434649218,-200.0,0.000249,7]
[401981465,1768434649227,-301.105307,0.000249,7]
[401981467,1768434649236,-151.0,0.000249,7]
[401981469,1768434649245,-151.0,0.000249,7]
[401981471,1768434649255,-151.0,0.000249,7]
[401981473,1768434649263,-151.0,0.000249,7]
[401981475,1768434649273,-276.465874,0.000249,7]
[401981477,1768434649281,-151.0,0.000249,7]
[401981479,1768434649290,-151.0,0.000249,7]
[401981481,1768434649299,-151.0,0.000249,7]
[401981483,1768434649308,-151.0,0.000249,7]
[401981485,1768434649317,-252.547119,0.000249,7]
[401981487,1768434649326,-151.0,0.000249,7]
[401981489,1768434649335,-151.0,0.000249,7]
[401981491,1768434649345,-151.0,0.000249,7]
[401981493,1768434649354,-293.503999,0.000249,7]
[401981495,1768434649363,-293.503999,0.000249,7]
[401981497,1768434649371,-293.503999,0.000249,7]
[401981499,1768434649380,-293.503999,0.000249,7]
[401981501,1768434649389,-582.913993,0.000249,7]
[401981503,1768434649398,-582.913993,0.000249,7]
[401981505,1768434649407,-582.913993,0.000249,7]
[401981507,1768434649416,-582.913993,0.000249,7]
[401981509,1768434649426,-795.987765,0.000249,7]
[401981511,1768434649436,-795.987765,0.000249,7]
[401981513,1768434649447,-795.987765,0.000249,7]
[401981515,1768434649456,-795.987765,0.000249,7]
[401981517,1768434649465,-580175.276332,0.000249,2]
[401981520,1768434649477,-151.0,0.000249,7]
[401981522,1768434649486,-151.0,0.000249,7]
[401981524,1768434649495,-151.0,0.000249,7]
[401981526,1768434649504,-847.432412,0.000249,7]
[401981528,1768434649514,-847.432412,0.000249,7]
[401981529,1768434649524,-847.432412,0.000249,7]
[401981531,1768434649533,-847.432412,0.000249,7]
[401981534,1768434649543,-1498.239018,0.000249,7]
[401981536,1768434649554,-1498.239018,0.000249,7]
[401981538,1768434649564,-1498.239018,0.000249,7]
[401981540,1768434649573,-1498.239018,0.000249,7]
[401981542,1768434649582,-263.265987,0.000249,7]
[401981544,1768434649591,-263.265987,0.000249,7]
[401981546,1768434649601,-151.0,0.000249,7]
[401981548,1768434649610,-263.265987,0.000249,7]
[401981550,1768434649621,-151.0,0.000249,7]
[401981552,1768434649631,-263.265987,0.000249,7]
[401981554,1768434649640,-151.0,0.000249,7]
[401981556,1768434649650,-151.0,0.000249,7]
[401981558,1768434649659,-151.0,0.000249,7]
[401981560,1768434649668,-151.0,0.000249,7]
[401981562,1768434649677,-151.0,0.000249,7]
[401981564,1768434649686,-151.0,0.000249,7]
[401981566,1768434649696,-151.0,0.000249,7]
[401981568,1768434649705,-151.0,0.000249,7]
[401981570,1768434649714,-151.0,0.000249,7]
[401981572,1768434649724,-228.378337,0.000249,7]
[401981574,1768434649733,-228.378337,0.000249,7]
[401981576,1768434649742,-228.378337,0.000249,7]
[401981578,1768434649752,-228.378337,0.000249,7]
[401981580,1768434649761,-593.168376,0.000249,7]
[401981582,1768434649770,-593.168376,0.000249,7]
[401981584,1768434649779,-593.168376,0.000249,7]
[401981586,1768434649788,-593.168376,0.000249,7]
[401981588,1768434649799,-151.0,0.000249,7]
[401981589,1768434649808,-151.0,0.000249,7]
[401981591,1768434649817,-151.0,0.000249,7]
[401981593,1768434649827,-800.0,0.00024919,2]
[401981596,1768434649836,-186.0,0.00024932,7]
[401981598,1768434649846,-500.0,0.00024932,2]
[401981599,1768434649856,-160.0,0.00024952,3]
[401981601,1768434649866,-500.0,0.00024957,2]
[401981603,1768434649875,-800.0,0.00024967,2]
[401981605,1768434649884,-800.0,0.00024973,2]
[401981607,1768434649893,-200.0,0.00024999,2]
[401981609,1768434649903,-500.0,0.00025,2]
[401981611,1768434649912,-500.0,0.00025,2]
[401981613,1768434649921,-155485.69389668,0.00025,15]
[401981615,1768434649930,-161.890701,0.00025,3]
[401981617,1768434649939,-29951.84,0.00025,2]
[401981619,1768434649948,-167.77,0.00025,7]
[401981621,1768434649957,-196.5,0.00025,7]
[401981623,1768434649966,-1041.66666667,0.00025,30]
[401981625,1768434649975,-10000.0,0.00025,2]
[401981627,1768434649984,-186.0,0.00025,7]
[401981629,1768434649994,-1041.66666667,0.00025,30]
[401981631,1768434650003,-293.85068442,0.00025016,7]
[401981633,1768434650012,-500.0,0.00025069,2]
[401981635,1768434650021,-900.0,0.00025077,7]
[401981637,1768434650032,-900.0,0.00025078,7]
[401981639,1768434650042,-1700.0,0.00025079,7]
[401981642,1768434650052,-714.6,0.00025097,2]
[401981644,1768434650061,-1296.0967193,0.00025118,7]
[401981646,1768434650070,-4350.78,0.000252,14]
[401981647,1768434650082,-2381.87,0.000252,7]
[401981649,1768434650093,-250.0,0.00025205,2]
[401981651,1768434650104,-500.0,0.00025206,2]
[401981653,1768434650113,-40893.3830001,0.00025219,3]
[401981655,1768434650122,-40893.3830001,0.00025219,3]
[401981657,1768434650132,-40893.3830001,0.00025219,3]
[401981659,1768434650140,-755.1645066,0.00025258,2]
[401981662,1768434650150,-3000.0,0.0002526,7]
[401981665,1768434650169,-297.43886801,0.00025267,2]
[401981667,1768434650179,-151.0,0.00025267,2]
[401981669,1768434650189,-250.0,0.00025267,2]
[401981671,1768434650198,-151.0,0.00025267,2]
[401981673,1768434650208,-250.0,0.00025267,2]
[401981675,1768434650218,-250.0,0.00025267,2]
[401981677,1768434650227,-151.0,0.00025267,2]
[401981679,1768434650237,-250.0,0.00025267,2]
[401981681,1768434650247,-250.0,0.00025267,2]
[401981683,1768434650256,-250.0,0.00025267,2]
[401981684,1768434650265,-151.0,0.00025267,2]
[401981686,1768434650275,-250.0,0.00025267,2]
[401981687,1768434650285,-250.0,0.00025267,2]
[401981688,1768434650298,-250.0,0.00025267,2]
[401981690,1768434650308,-151.0,0.00025267,2]
[401981691,1768434650318,-500.0,0.00025267,2]
[401981692,1768434650328,-250.0,0.00025267,2]
[401981693,1768434650337,-250.0,0.00025267,2]
[401981694,1768434650347,-250.0,0.00025267,2]
[401981695,1768434650356,-151.0,0.00025267,2]
[401981696,1768434650365,-500.0,0.00025267,2]
[401981697,1768434650375,-250.0,0.00025267,2]
[401981698,1768434650386,-294.03317915,0.00025267,2]
[401981699,1768434650396,-151.0,0.00025267,2]
[401981700,1768434650405,-500.0,0.00025267,2]
[401981701,1768434650415,-250.0,0.00025267,2]
[401981702,1768434650424,-151.0,0.00025267,2]
[401981703,1768434650434,-500.0,0.00025267,2]
[401981704,1768434650443,-151.0,0.00025267,2]
[401981705,1768434650452,-500.0,0.00025267,2]
[401981706,1768434650461,-151.0,0.00025267,2]
[401981707,1768434650471,-500.0,0.00025267,2]
[401981708,1768434650480,-30000.0,0.00025267,2]
[401981709,1768434650490,-151.0,0.00025267,2]
[401981710,1768434650499,-500.0,0.00025267,2]
[401981711,1768434650508,-151.0,0.00025267,2]
[401981712,1768434650518,-500.0,0.00025267,2]
[401981713,1768434650528,-151.0,0.00025267,2]
[401981714,1768434650537,-500.0,0.00025267,2]
[401981715,1768434650547,-151.0,0.00025267,2]
[401981716,1768434650557,-500.0,0.00025267,2]
[401981717,1768434650566,-461.67526834,0.00025267,2]
[401981718,1768434650575,-160.0,0.00025267,2]
[401981719,1768434650584,-245.0,0.00025267,2]
[401981720,1768434650594,-500.0,0.00025267,2]
[401981721,1768434650602,-160.0,0.00025267,2]
[401981722,1768434650611,-500.0,0.00025267,2]
[401981723,1768434650620,-164.08273023,0.00025267,2]
[401981724,1768434650629,-500.0,0.00025267,2]
[401981725,1768434650638,-500.0,0.00025267,2]
[401981726,1768434650647,-500.0,0.00025267,2]
[401981727,1768434650657,-500.0,0.00025267,2]
[401981728,1768434650666,-168.3888056,0.00025267,2]
[401981729,1768434650675,-500.0,0.00025267,2]
[401981730,1768434650685,-2230.315306,0.00025267,2]
[401981731,1768434650693,-168.3888056,0.00025267,2]
[401981732,1768434650702,-174.61919141,0.00025267,2]
[401981733,1768434650711,-181.08010149,0.00025267,2]
[401981734,1768434650720,-187.78006525,0.00025267,2]
[401981735,1768434650729,-194.72792766,0.00025267,2]
[401981736,1768434650738,-151.0,0.00025267,2]
[401981737,1768434650748,-201.93286099,0.00025267,2]
[401981738,1768434650757,-151.0,0.00025267,2]
[401981739,1768434650766,-209.40437684,0.00025267,2]
[401981740,1768434650775,-151.0,0.00025267,2]
[401981741,1768434650784,-217.15233878,0.00025267,2]
[401981742,1768434650793,-151.0,0.00025267,2]
[401981743,1768434650802,-225.18697532,0.00025267,2]
[401981744,1768434650811,-151.0,0.00025267,2]
[401981745,1768434650821,-233.51889341,0.00025267,2]
[401981746,1768434650830,-250.0,0.00025267,2]
[401981747,1768434650840,-151.0,0.00025267,2]
[401981748,1768434650850,-250.0,0.00025267,2]
[401981749,1768434650860,-151.0,0.00025267,2]
[401981750,1768434650870,-250.0,0.00025267,2]
[401981751,1768434650880,-242.15909246,0.00025267,2]
[401981752,1768434650889,-255.9181721,0.00025267,2]
[401981753,1768434650899,-151.0,0.00025267,2]
[401981754,1768434650909,-251.11897888,0.00025267,2]
[401981755,1768434650918,-151.0,0.00025267,2]
[401981756,1768434650929,-260.4103811,0.00025267,2]
[401981757,1768434650938,-163.79209166,0.00025267,2]
[401981758,1768434650948,-270.0455652,0.00025267,2]
[401981759,1768434650957,-280.03725112,0.00025267,2]
[401981760,1768434650966,-290.39862941,0.00025267,2]
[401981761,1768434650975,-301.1433787,0.00025267,2]
[401981762,1768434650984,-800.0,0.00025283,2]
[401981763,1768434650994,-599.99999956,0.00025297,2]
[401981764,1768434651007,-588.909417,0.00025342,2]
[401981765,1768434651017,-500.0,0.00025343,2]
[401981766,1768434651026,-27941.405534,0.00025346,2]
[401981767,1768434651041,-813.50644317,0.00025384,20]
[401981768,1768434651051,-35924.6642581,0.00025443,2]
[401981769,1768434651061,-1276.4588878,0.00025471,2]
[401981770,1768434651071,-3829.3766632,0.00025471,2]
[401981771,1768434651082,-8784.72600196,0.00025473,2]
[401981772,1768434651092,-500.0,0.0002548,2]
[401981773,1768434651103,-160.0,0.00025492,4]
[401981774,1768434651113,-3000.3969127,0.000255,2]
[401981775,1768434651124,-234.0,0.00025507,14]
[401981776,1768434651133,-500.0,0.00025617,2]
[401981777,1768434651144,-2000.0,0.00025624,7]
[401981778,1768434651155,-350.0,0.00025753,2]
[401981779,1768434651164,-500.0,0.00025754,2]
[401981780,1768434651174,-31110.0,0.00025815,2]
[401981781,1768434651183,-478.75725327,0.00025815,2]
[401981782,1768434651193,-174.61919141,0.00025815,2]
[401981783,1768434651202,-2312.83697232,0.00025815,2]
[401981784,1768434651212,-593.168376,0.00025816,7]
[401981785,1768434651221,-593.168376,0.00025816,7]
[401981786,1768434651231,-593.168376,0.00025816,7]
[401981787,1768434651240,-593.168385,0.00025816,7]
[401981788,1768434651252,-300.452852,0.00025816,7]
[401981789,1768434651262,-186.0,0.0002589,7]
[401981790,1768434651272,-500.0,0.00025891,2]
[401981791,1768434651281,-6803.24817253,0.00026,10]
[401981792,1768434651290,-530.08019871,0.00026,2]
[401981793,1768434651300,-54996.64034698,0.00026,30]
[401981794,1768434651752,-151.0,0.00021918,2]
[401981795,1768434651761,-283.61044671,0.00025267,2]
[401981796,1768434651771,-250.0,0.00025267,2]
[401981797,1768434651780,-250.0,0.00025267,2]
[401981798,1768434651789,-123.15825329,0.00025267,2]
[401981799,1768434651800,-126.84174671,0.00025267,2]
[401981800,1768434651809,-250.0,0.00025267,2]
[401981801,1768434651818,-271.32439801,0.00025267,2]
[401981802,1768434651828,-187.56102728,0.00026,30]
[401981803,1768434651839,-1428.77700251,0.00026,30]
[401981804,1768434651927,-17802.53305957,0.00026,30]
[401981849,1768435605890,1582.91778408,0.00027397,120]
[401981852,1768435728045,163.0,0.000273,120]
[401981853,1768435729123,163.0,0.000273,120]
[401981854,1768435735164,163.0,0.000273,120]
[401981855,1768435736138,163.0,0.000273,120]
[401981856,1768435740483,163.0,0.000273,120]
[401981857,1768435741322,163.0,0.000273,120]
[401981895,1768435832958,-575.0,0.00011039,2]
[401981896,1768435832968,-332.39406268,0.00011039,2]
[401981897,1768435832977,-300.0,0.00011039,2]
[401981898,1768435832986,-215.61463204,0.00011592,2]
[401981923,1768435838791,-282.09836796,0.00011592,2]
[401981925,1768435838804,-154.37011322,0.00011592,2]
[401981927,1768435838815,-398.03581315,0.00011828,2]
[401981929,1768435838826,-300.0,0.00012063,2]
[401981931,1768435838835,-300.0,0.00012064,2]
[401981933,1768435838847,-300.0,0.00012064,2]
[401981935,1768435838858,-300.0,0.00012064,2]
[401981936,1768435838868,-300.0,0.00012064,2]
[401981937,1768435838880,-300.0,0.00012064,2]
[401981938,1768435838890,-300.0,0.00012064,2]
[401981939,1768435838902,-300.0,0.00012064,2]
[401981940,1768435838914,-300.0,0.00012064,2]
[401981941,1768435838926,-300.0,0.00012064,2]
[401981942,1768435838937,-300.0,0.00012064,2]
[401981943,1768435838948,-300.0,0.00012064,2]
[401981944,1768435838959,-300.0,0.00012064,2]
[401981945,1768435838969,-300.0,0.00012064,2]
[401981946,1768435838979,-300.0,0.00012064,2]
[401981947,1768435838990,-300.0,0.00012064,2]
[401981948,1768435839004,-600.0,0.00012064,2]
[401981949,1768435839015,-151.0,0.000123,2]
[401981950,1768435839027,-392.22499397,0.00013039,2]
[401981951,1768435839038,-211.18158513,0.0001307,2]
[401981952,1768435839048,-420.0,0.00013242,2]
[401981953,1768435839059,-720.0,0.00013271,2]
[401981954,1768435839070,-500.0,0.00013273,2]
[401981955,1768435839080,-524.62460419,0.00013273,2]
[401981956,1768435839089,-500.0,0.00013273,2]
[401981957,1768435839099,-500.0,0.00013273,2]
[401981958,1768435839109,-500.0,0.00013273,2]
[401981959,1768435839119,-500.0,0.00013273,2]
[401981960,1768435839128,-500.0,0.00013273,2]
[401981961,1768435839137,-258.7698192,0.00013273,2]
[401981962,1768435839147,-386.78841051,0.00013273,2]
[401981963,1768435839157,-327.16701779,0.00013273,2]
[401981964,1768435839167,-500.0,0.00013273,2]
[401981965,1768435839177,-500.0,0.00013273,2]
[401981966,1768435839187,-500.0,0.00013273,2]
[401981967,1768435839197,-500.0,0.00013273,2]
[401981968,1768435839207,-500.0,0.00013273,2]
[401981969,1768435839216,-500.0,0.00013273,2]
[401981970,1768435839226,-500.0,0.00013273,2]
[401981971,1768435839235,-500.0,0.00013273,2]
[401981972,1768435839244,-440.24648614,0.00013273,2]
[401981973,1768435839254,-500.0,0.00013273,2]
[401981974,1768435839263,-500.0,0.00013273,2]
[401981975,1768435839272,-500.0,0.00013273,2]
[401981976,1768435839282,-500.0,0.00013273,2]
[401981977,1768435839291,-500.0,0.00013273,2]
[401981978,1768435839300,-500.0,0.00013273,2]
[401981979,1768435839310,-500.0,0.00013273,2]
[401981980,1768435839319,-500.0,0.00013273,2]
[401981981,1768435839328,-500.0,0.00013273,2]
[401981982,1768435839338,-500.0,0.00013273,2]
[401981983,1768435839348,-500.0,0.00013273,2]
[401981984,1768435839361,-500.0,0.00013273,2]
[401981985,1768435839371,-204.52635897,0.00013273,2]
[401981986,1768435839380,-500.0,0.00013273,2]
[401981987,1768435839391,-500.0,0.00013273,2]
[401981988,1768435839400,-500.0,0.00013273,2]
[401981989,1768435839410,-500.0,0.00013273,2]
[401981990,1768435839420,-500.0,0.00013273,2]
[401981991,1768435839430,-500.0,0.00013273,2]
[401981992,1768435839439,-500.0,0.00013273,2]
[401981993,1768435839449,-500.0,0.00013273,2]
[401981994,1768435839458,-500.0,0.00013273,2]
[401981995,1768435839467,-500.0,0.00013273,2]
[401981996,1768435839477,-500.0,0.00013273,2]
[401981997,1768435839486,-500.0,0.00013273,2]
[401981998,1768435839496,-500.0,0.00013273,2]
[401981999,1768435839505,-500.0,0.00013273,2]
[401982000,1768435839515,-500.0,0.0001341,2]
[401982001,1768435839525,-500.0,0.00013547,2]
[401982002,1768435839535,-416.89,0.00013599,2]
[401982003,1768435839544,-151.0,0.000136,2]
[401982004,1768435839553,-300.0,0.00013673,2]
[401982005,1768435839563,-500.0,0.00013684,2]
[401982006,1768435839572,-500.0,0.00013698,2]
[401982007,1768435839582,-500.0,0.00013698,2]
[401982008,1768435839592,-500.0,0.00013698,2]
[401982009,1768435839602,-500.0,0.00013698,2]
[401982010,1768435839611,-500.0,0.00013698,2]
[401982011,1768435839621,-500.0,0.00013698,2]
[401982012,1768435839629,-500.0,0.00013698,2]
[401982013,1768435839639,-500.0,0.00013698,2]
[401982014,1768435839649,-500.0,0.00013698,2]
[401982015,1768435839659,-500.0,0.00013698,2]
[401982016,1768435839670,-500.0,0.00013698,2]
[401982017,1768435839681,-500.0,0.00013698,2]
[401982018,1768435839696,-500.0,0.00013698,2]
[401982019,1768435839709,-500.0,0.00013698,2]
[401982020,1768435839722,-500.0,0.00013698,2]
[401982021,1768435839735,-500.0,0.00013698,2]
[401982022,1768435839748,-516.99529864,0.00013698,2]
[401982023,1768435839758,-500.0,0.00013698,2]
[401982024,1768435839769,-500.0,0.00013698,2]
[401982025,1768435839782,-500.0,0.00013698,2]
[401982026,1768435839794,-500.0,0.00013698,2]
[401982027,1768435839806,-500.0,0.00013698,2]
[401982028,1768435839819,-500.0,0.00013698,2]
[401982029,1768435839830,-500.0,0.00013698,2]
[401982030,1768435839844,-500.0,0.00013698,2]
[401982031,1768435839855,-500.0,0.00013698,2]
[401982032,1768435839867,-500.0,0.00013698,2]
[401982033,1768435839880,-500.0,0.00013698,2]
[401982034,1768435839894,-500.0,0.00013698,2]
[401982035,1768435839905,-500.0,0.00013698,2]
[401982036,1768435839917,-500.0,0.00013698,2]
[401982037,1768435839929,-500.0,0.00013698,2]
[401982038,1768435839943,-500.0,0.00013698,2]
[401982039,1768435839954,-500.0,0.00013698,2]
[401982040,1768435839965,-500.0,0.00013698,2]
[401982041,1768435839976,-500.0,0.00013698,2]
[401982042,1768435839989,-500.0,0.00013698,2]
[401982043,1768435840001,-500.0,0.00013698,2]
[401982044,1768435840021,-474.04439387,0.00013698,2]
[401982045,1768435840041,-500.0,0.00013698,2]
[401982046,1768435840053,-500.0,0.00013698,2]
[401982047,1768435840064,-500.0,0.00013698,2]
[401982048,1768435840074,-500.0,0.00013698,2]
[401982049,1768435840088,-550.39437847,0.00013698,2]
[401982050,1768435840099,-500.0,0.00013698,2]
[401982051,1768435840114,-500.0,0.00013698,2]
[401982052,1768435840127,-500.0,0.00013698,2]
[401982053,1768435840140,-500.0,0.00013698,2]
[401982054,1768435840154,-500.0,0.00013698,2]
[401982055,1768435840167,-500.0,0.00013698,2]
[401982056,1768435840181,-500.0,0.00013698,2]
[401982057,1768435840194,-500.0,0.00013698,2]
[401982058,1768435840208,-500.0,0.00013698,2]
[401982059,1768435840221,-279.9,0.00013698,2]
[401982060,1768435840235,-500.0,0.00013698,2]
[401982061,1768435840245,-500.0,0.00013698,2]
[401982062,1768435840255,-500.0,0.00013698,2]
[401982063,1768435840265,-500.0,0.00013698,2]
[401982064,1768435840276,-500.0,0.00013698,2]
[401982065,1768435840286,-500.0,0.00013698,2]
[401982066,1768435840300,-500.0,0.00013698,2]
[401982067,1768435840313,-500.0,0.00013698,2]
[401982068,1768435840326,-500.0,0.00013698,2]
[401982069,1768435840337,-500.0,0.00013698,2]
[401982070,1768435840348,-500.0,0.00013698,2]
[401982071,1768435840363,-500.0,0.00013698,2]
[401982072,1768435840374,-500.0,0.00013698,2]
[401982073,1768435840387,-500.0,0.00013698,2]
[401982074,1768435840401,-500.0,0.00013698,2]
[401982075,1768435840413,-500.0,0.00013698,2]
[401982076,1768435840425,-396.20769079,0.00013698,2]
[401982077,1768435840435,-2872.691767,0.00013699,2]
[401982078,1768435840445,-500.0,0.00013699,2]
[401982079,1768435840455,-500.0,0.00013699,2]
[401982080,1768435840466,-500.0,0.00013699,2]
[401982081,1768435840477,-500.0,0.00013699,2]
[401982082,1768435840489,-500.18151146,0.00013699,2]
[401982083,1768435840500,-500.0,0.00013699,2]
[401982084,1768435840511,-500.0,0.00013699,2]
[401982086,1768435840523,-500.0,0.00013699,2]
[401982087,1768435840535,-500.0,0.00013699,2]
[401982088,1768435840553,-500.0,0.00013699,2]
[401982089,1768435840565,-500.0,0.00013699,2]
[401982090,1768435840576,-500.0,0.00013699,2]
[401982091,1768435840587,-500.0,0.00013699,2]
[401982092,1768435840599,-500.0,0.00013699,2]
[401982093,1768435840610,-500.0,0.00013699,2]
[401982094,1768435840621,-500.0,0.00013699,2]
[401982095,1768435840632,-500.0,0.00013699,2]
[401982096,1768435840643,-500.0,0.00013699,2]
[401982097,1768435840655,-500.0,0.00013699,2]
[401982098,1768435840666,-370.92368598,0.00013699,2]
[401982099,1768435840678,-301.86126485,0.00013699,2]
[401982100,1768435840689,-500.0,0.00013699,2]
[401982101,1768435840700,-500.0,0.00013699,2]
[401982102,1768435840711,-500.0,0.00013699,2]
[401982103,1768435840723,-500.0,0.00013699,2]
[401982104,1768435840734,-500.0,0.00013699,2]
[401982105,1768435840745,-500.0,0.00013699,2]
[401982106,1768435840756,-500.0,0.00013699,2]
[401982107,1768435840770,-500.0,0.00013699,2]
[401982108,1768435840781,-500.0,0.00013699,2]
[401982109,1768435840793,-500.0,0.00013699,2]
[401982110,1768435840805,-500.0,0.00013699,2]
[401982111,1768435840816,-500.0,0.00013699,2]
[401982112,1768435840828,-413.79090585,0.00013699,2]
[401982113,1768435840839,-158.55908659,0.00013699,2]
[401982115,1768435840850,-500.0,0.00013699,2]
[401982117,1768435840861,-500.0,0.00013699,2]
[401982119,1768435840872,-500.0,0.00013699,2]
[401982122,1768435840883,-500.28466628,0.00013699,2]
[401982124,1768435840895,-500.10410433,0.00013699,2]
[401982126,1768435840905,-500.91728774,0.00013699,2]
[401982128,1768435840916,-500.0,0.00013699,2]
[401982131,1768435840928,-500.0,0.00013699,2]
[401982133,1768435840938,-500.0,0.00013699,2]
[401982135,1768435840949,-506.34451005,0.00013699,2]
[401982137,1768435840960,-500.0,0.00013699,2]
[401982139,1768435840971,-500.0,0.00013699,2]
[401982141,1768435840982,-500.0,0.00013699,2]
[401982144,1768435840993,-500.0,0.00013699,2]
[401982146,1768435841004,-500.0,0.00013699,2]
[401982148,1768435841015,-500.0,0.00013699,2]
[401982150,1768435841025,-500.0,0.00013699,2]
[401982152,1768435841036,-500.0,0.00013699,2]
[401982154,1768435841047,-500.0,0.00013699,2]
[401982156,1768435841057,-500.0,0.00013699,2]
[401982159,1768435841067,-443.99780341,0.00013699,2]
[401982161,1768435841078,-500.0,0.00013699,2]
[401982163,1768435841088,-500.0,0.00013699,2]
[401982165,1768435841099,-500.0,0.00013699,2]
[401982167,1768435841110,-500.0,0.00013699,2]
[401982170,1768435841121,-500.0,0.00013699,2]
[401982172,1768435841131,-500.0,0.00013699,2]
[401982174,1768435841142,-500.0,0.00013699,2]
[401982176,1768435841152,-500.0,0.00013699,2]
[401982178,1768435841164,-500.0,0.00013699,2]
[401982180,1768435841174,-500.0,0.00013699,2]
[401982183,1768435841185,-501.05002058,0.00013699,2]
[401982185,1768435841196,-500.0,0.00013699,2]
[401982187,1768435841207,-501.1212268,0.00013699,2]
[401982189,1768435841217,-500.0,0.00013699,2]
[401982191,1768435841228,-500.0,0.00013699,2]
[401982194,1768435841239,-500.0,0.00013699,2]
[401982196,1768435841250,-500.0,0.00013699,2]
[401982198,1768435841261,-500.0,0.00013699,2]
[401982200,1768435841271,-216.76955041,0.00013699,2]
[401982202,1768435841282,-10000.0,0.00013775,2]
[401982204,1768435841293,-9182.6,0.00013775,2]
[401982206,1768435841304,-1000.0,0.00013821,2]
[401982209,1768435841315,-502.88869488,0.00013821,2]
[401982211,1768435841326,-1000.0,0.00013821,2]
[401982213,1768435841336,-1000.0,0.00013821,2]
[401982215,1768435841349,-398.1599153,0.00013821,2]
[401982217,1768435841364,-1000.0,0.00013821,2]
[401982220,1768435841374,-1000.0,0.00013821,2]
[401982222,1768435841385,-784.00644743,0.00013821,2]
[401982224,1768435841395,-1000.0,0.00013821,2]
[401982226,1768435841407,-1000.0,0.00013821,2]
[401982228,1768435841418,-1000.0,0.00013821,2]
[401982229,1768435841429,-1000.0,0.00013821,2]
[401982230,1768435841441,-500.0,0.00013821,2]
[401982231,1768435841452,-1000.0,0.00013821,2]
[401982232,1768435841462,-1000.0,0.00013821,2]
[401982233,1768435841473,-500.0,0.00013821,2]
[401982234,1768435841484,-1000.0,0.00013821,2]
[401982235,1768435841495,-1000.0,0.00013821,2]
[401982236,1768435841506,-1000.0,0.00013821,2]
[401982237,1768435841516,-500.41691689,0.00013821,2]
[401982238,1768435841527,-1000.0,0.00013821,2]
[401982239,1768435841538,-1000.0,0.00013821,2]
[401982240,1768435841548,-1000.0,0.00013821,2]
[401982241,1768435841558,-1000.0,0.00013821,2]
[401982242,1768435841569,-1000.0,0.00013821,2]
[401982243,1768435841579,-446.5684735,0.00013821,2]
[401982244,1768435841589,-1000.0,0.00013821,2]
[401982245,1768435841600,-1000.0,0.00013821,2]